[Event "*** Titled Tuesday Blitz"]
[Site "Chess.com"]
[Date "2020.04.14"]
[Round "5"]
[White "pheonixking2000"]
[Black "Duhless"]
[Result "1-0"]
[WhiteElo "2842"]
[BlackElo "3074"]
[TimeControl "180+1"]
[EndTime "10:51:43 PDT"]
[Termination "pheonixking2000 won by resignation"]

1. c4 {[%clk 0:03:00.9]} 1... g6 {[%clk 0:02:59]} 2. d4 {[%clk 0:02:54.5]} 2...
Nf6 {[%clk 0:02:57.8]} 3. Nc3 {[%clk 0:02:54.2]} 3... d5 {[%clk 0:02:57.1]} 4.
cxd5 {[%clk 0:02:54.1]} 4... Nxd5 {[%clk 0:02:58]} 5. e4 {[%clk 0:02:54.3]} 5...
Nxc3 {[%clk 0:02:58]} 6. bxc3 {[%clk 0:02:55.2]} 6... Bg7 {[%clk 0:02:58.9]} 7.
Nf3 {[%clk 0:02:54.9]} 7... c5 {[%clk 0:02:58.5]} 8. Rb1 {[%clk 0:02:55.3]} 8...
O-O {[%clk 0:02:57.2]} 9. Be2 {[%clk 0:02:53.9]} 9... b6 {[%clk 0:02:53.6]} 10.
O-O {[%clk 0:02:49.1]} 10... Bb7 {[%clk 0:02:53.6]} 11. Qd3 {[%clk 0:02:48.5]}
11... e6 {[%clk 0:02:47.2]} 12. Bg5 {[%clk 0:02:45]} 12... Qc7 {[%clk
0:02:44.9]} 13. Qe3 {[%clk 0:02:44.7]} 13... Nd7 {[%clk 0:02:42]} 14. e5 {[%clk
0:02:42.9]} 14... Rac8 {[%clk 0:02:29]} 15. Nd2 {[%clk 0:02:35.3]} 15... cxd4
{[%clk 0:02:15.7]} 16. cxd4 {[%clk 0:02:34.5]} 16... Qc3 {[%clk 0:02:16]} 17.
Bb5 {[%clk 0:02:08.6]} 17... Qxe3 {[%clk 0:01:59.3]} 18. fxe3 {[%clk 0:02:09.5]}
18... Rc2 {[%clk 0:01:58.8]} 19. Rf2 {[%clk 0:01:50.6]} 19... Bc6 {[%clk
0:01:40.3]} 20. Bxc6 {[%clk 0:01:45.8]} 20... Rxc6 {[%clk 0:01:41.2]} 21. Ne4
{[%clk 0:01:46.4]} 21... Rfc8 {[%clk 0:01:37.2]} 22. Rbf1 {[%clk 0:01:41.2]}
22... Rc1 {[%clk 0:01:24.3]} 23. Rxf7 {[%clk 0:01:40.6]} 23... Rxf1+ {[%clk
0:01:09.5]} 24. Rxf1 {[%clk 0:01:41.5]} 24... Rc2 {[%clk 0:01:09.5]} 25. a4
{[%clk 0:01:36.6]} 25... Bf8 {[%clk 0:01:03.2]} 26. h4 {[%clk 0:01:31]} 26...
Bb4 {[%clk 0:00:56.8]} 27. Nf6+ {[%clk 0:01:23.5]} 27... Nxf6 {[%clk 0:00:54.4]}
28. Rxf6 {[%clk 0:01:24.4]} 28... Rc6 {[%clk 0:00:51.7]} 29. Kh2 {[%clk
0:01:17.9]} 29... Bc3 {[%clk 0:00:29.9]} 30. Bh6 {[%clk 0:01:15.4]} 30... Bb4
{[%clk 0:00:27.6]} 31. d5 {[%clk 0:01:10.1]} 31... Rc4 {[%clk 0:00:27.5]} 32. d6
{[%clk 0:00:31]} 32... Rxh4+ {[%clk 0:00:22.8]} 33. Kg1 {[%clk 0:00:31.4]} 33...
Rxh6 {[%clk 0:00:11.9]} 34. Rxe6 {[%clk 0:00:28.3]} 34... Kf7 {[%clk 0:00:05.3]}
35. Re7+ {[%clk 0:00:28.1]} 35... Kf8 {[%clk 0:00:05.5]} 36. Rxa7 {[%clk
0:00:21.5]} 36... Rh5 {[%clk 0:00:05.7]} 37. Re7 {[%clk 0:00:20.2]} 37... Bc5
{[%clk 0:00:03.7]} 38. Kf2 {[%clk 0:00:19.4]} 38... Rf5+ {[%clk 0:00:03.9]} 39.
Ke2 {[%clk 0:00:20]} 39... Rf7 {[%clk 0:00:04.4]} 40. Re6 {[%clk 0:00:20.5]}
40... Kg7 {[%clk 0:00:03.3]} 41. Kd3 {[%clk 0:00:20.3]} 41... Kf8 {[%clk
0:00:03.6]} 42. Ke4 {[%clk 0:00:20.3]} 42... Rf1 {[%clk 0:00:01.8]} 43. Kd5
{[%clk 0:00:20.5]} 43... Kf7 {[%clk 0:00:02.7]} 44. Re7+ {[%clk 0:00:20.5]}
44... Kf8 {[%clk 0:00:03.1]} 45. Rxh7 {[%clk 0:00:19.3]} 45... Re1 {[%clk
0:00:02.7]} 46. Rh8+ {[%clk 0:00:19.1]} 46... Kf7 {[%clk 0:00:02.7]} 47. e6+
{[%clk 0:00:18.9]} 47... Kg7 {[%clk 0:00:03.2]} 48. e7 {[%clk 0:00:18.3]} 48...
Rd1+ {[%clk 0:00:03.6]} 49. Kc4 {[%clk 0:00:18.6]} 49... Rc1+ {[%clk 0:00:03.5]}
50. Kb3 {[%clk 0:00:18.4]} 50... Kxh8 {[%clk 0:00:02.9]} 51. e8=Q+ {[%clk
0:00:18.6]} 51... Kg7 {[%clk 0:00:03.8]} 52. d7 {[%clk 0:00:19.5]} 52... Rd1
{[%clk 0:00:03.3]} 53. d8=Q {[%clk 0:00:19.5]} 1-0

[Event "*** Titled Tuesday Blitz"]
[Site "Chess.com"]
[Date "2020.04.14"]
[Round "5"]
[White "Darhild"]
[Black "suyu28"]
[Result "1/2-1/2"]
[WhiteElo "2711"]
[BlackElo "2550"]
[TimeControl "180+1"]
[EndTime "10:51:43 PDT"]
[Termination "Game drawn by repetition"]

1. Nf3 {[%clk 0:03:00.9]} 1... d5 {[%clk 0:02:59.6]} 2. g3 {[%clk 0:03:00.6]}
2... c6 {[%clk 0:02:59.4]} 3. Bg2 {[%clk 0:03:00.8]} 3... Bg4 {[%clk 0:02:59.5]}
4. d4 {[%clk 0:03:00.2]} 4... Nd7 {[%clk 0:02:59]} 5. O-O {[%clk 0:03:00]} 5...
e6 {[%clk 0:02:59.5]} 6. c4 {[%clk 0:03:00.2]} 6... Ngf6 {[%clk 0:02:59.7]} 7.
h3 {[%clk 0:03:00.2]} 7... Bh5 {[%clk 0:02:59.4]} 8. cxd5 {[%clk 0:03:00.5]}
8... exd5 {[%clk 0:02:58.8]} 9. Qb3 {[%clk 0:03:00.5]} 9... Qb6 {[%clk
0:02:58.7]} 10. Qe3+ {[%clk 0:03:00.9]} 10... Be7 {[%clk 0:02:59.3]} 11. Nh4
{[%clk 0:03:01.5]} 11... Bg6 {[%clk 0:02:55.6]} 12. Nc3 {[%clk 0:03:02]} 12...
Qd8 {[%clk 0:02:55]} 13. f4 {[%clk 0:03:00.9]} 13... Bc2 {[%clk 0:02:19.2]} 14.
g4 {[%clk 0:02:45.7]} 14... O-O {[%clk 0:02:12.5]} 15. g5 {[%clk 0:02:45.9]}
15... Ne8 {[%clk 0:01:58.3]} 16. Qd2 {[%clk 0:02:03.4]} 16... Bg6 {[%clk
0:01:54.6]} 17. f5 {[%clk 0:01:56.2]} 17... Bh5 {[%clk 0:01:54.5]} 18. e4 {[%clk
0:01:47.5]} 18... dxe4 {[%clk 0:01:14.3]} 19. Nxe4 {[%clk 0:01:41.2]} 19... Bd6
{[%clk 0:01:13.3]} 20. Qf2 {[%clk 0:01:16.5]} 20... Bb8 {[%clk 0:01:06.7]} 21.
Bf4 {[%clk 0:01:12.2]} 21... Bxf4 {[%clk 0:00:59.7]} 22. Qxf4 {[%clk 0:01:12.8]}
22... Be2 {[%clk 0:00:59.7]} 23. Rf2 {[%clk 0:01:09.5]} 23... Bc4 {[%clk
0:01:00]} 24. f6 {[%clk 0:00:55.8]} 24... g6 {[%clk 0:00:53]} 25. Re1 {[%clk
0:00:37.3]} 25... Bd5 {[%clk 0:00:39.1]} 26. Ng3 {[%clk 0:00:34.4]} 26... Nc7
{[%clk 0:00:33.3]} 27. Nhf5 {[%clk 0:00:29.5]} 27... gxf5 {[%clk 0:00:28.6]} 28.
Nxf5 {[%clk 0:00:23.6]} 28... Bxg2 {[%clk 0:00:28.7]} 29. Rxg2 {[%clk
0:00:17.8]} 29... Nd5 {[%clk 0:00:25.9]} 30. Qh4 {[%clk 0:00:17.9]} 30... Kh8
{[%clk 0:00:23]} 31. Rg4 {[%clk 0:00:13.7]} 31... N7xf6 {[%clk 0:00:21]} 32.
gxf6 {[%clk 0:00:12.5]} 32... Qxf6 {[%clk 0:00:21.3]} 33. Qxf6+ {[%clk
0:00:05.7]} 33... Nxf6 {[%clk 0:00:21.3]} 34. Rg2 {[%clk 0:00:06.6]} 34... Rg8
{[%clk 0:00:21.6]} 35. Re7 {[%clk 0:00:06.1]} 35... Nd5 {[%clk 0:00:18]} 36.
Rxf7 {[%clk 0:00:04.8]} 36... Nf4 {[%clk 0:00:14.7]} 37. Rxg8+ {[%clk
0:00:04.7]} 37... Rxg8+ {[%clk 0:00:15.6]} 38. Kh2 {[%clk 0:00:05.1]} 38... Rg2+
{[%clk 0:00:15.3]} 39. Kh1 {[%clk 0:00:05.4]} 39... Rg8 {[%clk 0:00:15.4]} 40.
h4 {[%clk 0:00:04.9]} 40... h5 {[%clk 0:00:11.5]} 41. Rxb7 {[%clk 0:00:04.3]}
41... Ne2 {[%clk 0:00:06.8]} 42. Kh2 {[%clk 0:00:03.7]} 42... Ng1 {[%clk
0:00:04.7]} 43. Ne3 {[%clk 0:00:01.9]} 43... Nf3+ {[%clk 0:00:04.7]} 44. Kh3
{[%clk 0:00:02.5]} 44... Ng1+ {[%clk 0:00:04.9]} 45. Kh2 {[%clk 0:00:02.8]}
45... Nf3+ {[%clk 0:00:05.3]} 46. Kh3 {[%clk 0:00:03.5]} 46... Ng1+ {[%clk
0:00:04.4]} 47. Kh2 {[%clk 0:00:04]} 1/2-1/2

[Event "*** Titled Tuesday Blitz"]
[Site "Chess.com"]
[Date "2020.04.14"]
[Round "5"]
[White "Eltarolo"]
[Black "YumiBear"]
[Result "0-1"]
[WhiteElo "2343"]
[BlackElo "2529"]
[TimeControl "180+1"]
[EndTime "10:51:43 PDT"]
[Termination "YumiBear won by checkmate"]

1. e4 {[%clk 0:03:00.9]} 1... c6 {[%clk 0:02:59.9]} 2. d4 {[%clk 0:03:01]} 2...
d5 {[%clk 0:03:00.2]} 3. Nc3 {[%clk 0:03:01.9]} 3... dxe4 {[%clk 0:03:00]} 4.
Nxe4 {[%clk 0:03:02.8]} 4... Nf6 {[%clk 0:03:00.4]} 5. Ng3 {[%clk 0:02:53.3]}
5... h5 {[%clk 0:02:59.4]} 6. h4 {[%clk 0:02:52.1]} 6... Bg4 {[%clk 0:02:59.6]}
7. Be2 {[%clk 0:02:52.3]} 7... e6 {[%clk 0:02:57.9]} 8. c3 {[%clk 0:02:51.3]}
8... Bd6 {[%clk 0:02:56.1]} 9. Bxg4 {[%clk 0:02:44.4]} 9... hxg4 {[%clk
0:02:30.3]} 10. N1e2 {[%clk 0:02:40]} 10... Qc7 {[%clk 0:02:30.7]} 11. Bg5
{[%clk 0:02:36.1]} 11... Nbd7 {[%clk 0:02:30.5]} 12. Qd2 {[%clk 0:02:30.7]}
12... O-O-O {[%clk 0:02:29.8]} 13. O-O-O {[%clk 0:02:29.6]} 13... Kb8 {[%clk
0:02:21.2]} 14. Kb1 {[%clk 0:02:14.5]} 14... Ka8 {[%clk 0:02:11.9]} 15. Bf4
{[%clk 0:01:51.6]} 15... Nb6 {[%clk 0:02:05]} 16. Bxd6 {[%clk 0:01:46.5]} 16...
Qxd6 {[%clk 0:02:01.7]} 17. Qf4 {[%clk 0:01:46.2]} 17... Qd5 {[%clk 0:01:59]}
18. Qe5 {[%clk 0:01:39.8]} 18... Qxg2 {[%clk 0:01:48.1]} 19. Qg5 {[%clk
0:00:59.2]} 19... Ne4 {[%clk 0:01:18.6]} 20. Qxg4 {[%clk 0:00:50.6]} 20... Nxf2
{[%clk 0:01:17.3]} 21. Rhg1 {[%clk 0:00:40.3]} 21... Qxg1 {[%clk 0:01:15.8]} 22.
Rxg1 {[%clk 0:00:32.1]} 22... Nxg4 {[%clk 0:01:15.9]} 23. h5 {[%clk 0:00:31.3]}
23... f5 {[%clk 0:01:15]} 24. Nf4 {[%clk 0:00:29.9]} 24... Rde8 {[%clk
0:01:13.1]} 25. Ng6 {[%clk 0:00:27.6]} 25... Rh6 {[%clk 0:01:13.1]} 26. Nf4
{[%clk 0:00:24.6]} 26... Nd5 {[%clk 0:01:12.4]} 27. Nd3 {[%clk 0:00:23.6]} 27...
b6 {[%clk 0:01:12.1]} 28. Re1 {[%clk 0:00:23.1]} 28... Kb7 {[%clk 0:01:11.9]}
29. Nxf5 {[%clk 0:00:23.2]} 29... exf5 {[%clk 0:00:54.5]} 30. Rxe8 {[%clk
0:00:24.1]} 30... Rxh5 {[%clk 0:00:53.8]} 31. a3 {[%clk 0:00:18.1]} 31... Rh1+
{[%clk 0:00:44.5]} 32. Ka2 {[%clk 0:00:18.1]} 32... Rd1 {[%clk 0:00:29.1]} 33.
Ne5 {[%clk 0:00:07.9]} 33... Nxe5 {[%clk 0:00:29]} 34. dxe5 {[%clk 0:00:08.4]}
34... Re1 {[%clk 0:00:28.9]} 35. c4 {[%clk 0:00:08.3]} 35... Nc7 {[%clk
0:00:28.4]} 36. Re7 {[%clk 0:00:08.3]} 36... g5 {[%clk 0:00:28.5]} 37. Kb3
{[%clk 0:00:07.6]} 37... g4 {[%clk 0:00:28.8]} 38. Kc2 {[%clk 0:00:07.2]} 38...
g3 {[%clk 0:00:29.1]} 39. Rg7 {[%clk 0:00:06.3]} 39... f4 {[%clk 0:00:29.3]} 40.
Rg5 {[%clk 0:00:05.3]} 40... f3 {[%clk 0:00:28]} 41. Rxg3 {[%clk 0:00:05.2]}
41... f2 {[%clk 0:00:28.3]} 42. Rf3 {[%clk 0:00:05.6]} 42... f1=Q {[%clk
0:00:28.9]} 43. Rxf1 {[%clk 0:00:05.9]} 43... Rxf1 {[%clk 0:00:29.8]} 44. Kd2
{[%clk 0:00:05.6]} 44... Ne6 {[%clk 0:00:30.4]} 45. Ke2 {[%clk 0:00:05.5]} 45...
Rf5 {[%clk 0:00:30.7]} 46. Kd3 {[%clk 0:00:05.7]} 46... Rxe5 {[%clk 0:00:31.6]}
47. Kc3 {[%clk 0:00:06.4]} 47... Nc5 {[%clk 0:00:32]} 48. Kd4 {[%clk 0:00:06.7]}
48... Re4+ {[%clk 0:00:32.2]} 49. Kc3 {[%clk 0:00:07.3]} 49... Re3+ {[%clk
0:00:32.7]} 50. Kc2 {[%clk 0:00:06.5]} 50... Nb3 {[%clk 0:00:32.9]} 51. Kb1
{[%clk 0:00:06]} 51... a5 {[%clk 0:00:32.1]} 52. a4 {[%clk 0:00:06.2]} 52... Nc5
{[%clk 0:00:32]} 53. Ka2 {[%clk 0:00:05.7]} 53... Nxa4 {[%clk 0:00:32.5]} 54.
Kb1 {[%clk 0:00:06.1]} 54... Nc5 {[%clk 0:00:32.6]} 55. Ka2 {[%clk 0:00:06.6]}
55... a4 {[%clk 0:00:33.2]} 56. Kb1 {[%clk 0:00:06.9]} 56... a3 {[%clk
0:00:33.7]} 57. bxa3 {[%clk 0:00:06.7]} 57... Rxa3 {[%clk 0:00:34.1]} 58. Kb2
{[%clk 0:00:07.6]} 58... Rb3+ {[%clk 0:00:34.6]} 59. Kc2 {[%clk 0:00:08.2]}
59... Ka6 {[%clk 0:00:35.2]} 60. Kc1 {[%clk 0:00:08.8]} 60... Ka5 {[%clk
0:00:35.9]} 61. Kc2 {[%clk 0:00:09.6]} 61... Kb4 {[%clk 0:00:36.5]} 62. Kc1
{[%clk 0:00:10.5]} 62... Kc3 {[%clk 0:00:36.2]} 63. Kd1 {[%clk 0:00:10.9]} 63...
Kd3 {[%clk 0:00:35.2]} 64. Kc1 {[%clk 0:00:11.1]} 64... Rb4 {[%clk 0:00:35.4]}
65. Kd1 {[%clk 0:00:11.2]} 65... Rb1# {[%clk 0:00:35.7]} 0-1

[Event "*** Titled Tuesday Blitz"]
[Site "Chess.com"]
[Date "2020.04.14"]
[Round "5"]
[White "igorkovalenko"]
[Black "Buffy7"]
[Result "1-0"]
[WhiteElo "2902"]
[BlackElo "2646"]
[TimeControl "180+1"]
[EndTime "10:51:46 PDT"]
[Termination "igorkovalenko won on time"]

1. d4 {[%clk 0:03:00.9]} 1... Nf6 {[%clk 0:02:58.8]} 2. Nf3 {[%clk 0:03:01.4]}
2... g6 {[%clk 0:02:57.8]} 3. Bf4 {[%clk 0:03:01.1]} 3... Bg7 {[%clk 0:02:57.7]}
4. e3 {[%clk 0:03:01.7]} 4... O-O {[%clk 0:02:57.7]} 5. h3 {[%clk 0:03:02.2]}
5... d6 {[%clk 0:02:57.2]} 6. c3 {[%clk 0:03:02.8]} 6... Nc6 {[%clk 0:02:56.6]}
7. Bh2 {[%clk 0:03:01.5]} 7... Qe8 {[%clk 0:02:55.5]} 8. Bb5 {[%clk 0:02:59.6]}
8... a6 {[%clk 0:02:52.7]} 9. Ba4 {[%clk 0:02:59.7]} 9... b5 {[%clk 0:02:46.7]}
10. Bc2 {[%clk 0:02:47]} 10... Bb7 {[%clk 0:02:46]} 11. O-O {[%clk 0:02:44.5]}
11... e5 {[%clk 0:02:45.7]} 12. a4 {[%clk 0:02:43.4]} 12... Qe7 {[%clk
0:02:35.9]} 13. Na3 {[%clk 0:02:39.1]} 13... e4 {[%clk 0:02:31.4]} 14. Nd2
{[%clk 0:02:37.1]} 14... b4 {[%clk 0:02:28.2]} 15. Nab1 {[%clk 0:02:34.8]} 15...
a5 {[%clk 0:02:19]} 16. Bg3 {[%clk 0:02:30.9]} 16... h6 {[%clk 0:02:12.7]} 17.
Bb3 {[%clk 0:02:22.5]} 17... Nd8 {[%clk 0:01:58.2]} 18. Nc4 {[%clk 0:02:18.3]}
18... Ne6 {[%clk 0:01:46.6]} 19. Nbd2 {[%clk 0:02:16.5]} 19... Nh5 {[%clk
0:01:42]} 20. Bh2 {[%clk 0:02:16.4]} 20... d5 {[%clk 0:01:29.2]} 21. Ne5 {[%clk
0:02:13.9]} 21... c5 {[%clk 0:01:28.6]} 22. Qb1 {[%clk 0:02:00.3]} 22... Kh7
{[%clk 0:01:20.4]} 23. Bd1 {[%clk 0:02:00.2]} 23... f5 {[%clk 0:01:15.8]} 24.
Bxh5 {[%clk 0:01:58.1]} 24... gxh5 {[%clk 0:01:16]} 25. Qd1 {[%clk 0:01:57.6]}
25... Qe8 {[%clk 0:01:13.8]} 26. Bf4 {[%clk 0:01:43.2]} 26... Ba6 {[%clk
0:01:10.8]} 27. Re1 {[%clk 0:01:42.3]} 27... Rg8 {[%clk 0:01:08.3]} 28. Kh2
{[%clk 0:01:39.2]} 28... Ra7 {[%clk 0:01:02.5]} 29. Rg1 {[%clk 0:01:32]} 29...
Rb7 {[%clk 0:00:59.4]} 30. Nb3 {[%clk 0:01:25.2]} 30... bxc3 {[%clk 0:00:54.4]}
31. bxc3 {[%clk 0:01:26.1]} 31... c4 {[%clk 0:00:52.4]} 32. Nxa5 {[%clk
0:01:20.5]} 32... Rb2 {[%clk 0:00:51.7]} 33. Rf1 {[%clk 0:01:16.6]} 33... Bf6
{[%clk 0:00:35.9]} 34. Rb1 {[%clk 0:01:04.1]} 34... Rxb1 {[%clk 0:00:33]} 35.
Qxb1 {[%clk 0:01:03.8]} 35... Bd8 {[%clk 0:00:19]} 36. Nac6 {[%clk 0:01:03]}
36... Bc7 {[%clk 0:00:19.1]} 37. g3 {[%clk 0:00:51]} 37... h4 {[%clk 0:00:18.5]}
38. Rg1 {[%clk 0:00:50.7]} 38... Qh5 {[%clk 0:00:15.2]} 39. Qd1 {[%clk
0:00:50.1]} 39... hxg3+ {[%clk 0:00:12.1]} 40. fxg3 {[%clk 0:00:49.5]} 40... Qe8
{[%clk 0:00:10.5]} 41. Nb4 {[%clk 0:00:43.2]} 41... Bc8 {[%clk 0:00:09.4]} 42.
Nec6 {[%clk 0:00:37.2]} 42... Ng5 {[%clk 0:00:07.2]} 43. Bxc7 {[%clk 0:00:21.8]}
43... Nf3+ {[%clk 0:00:07.5]} 44. Kg2 {[%clk 0:00:22.3]} 44... f4 {[%clk
0:00:04.5]} 45. Bxf4 {[%clk 0:00:21.3]} 45... Bxh3+ {[%clk 0:00:03.9]} 46. Kf2
{[%clk 0:00:20]} 46... Nxg1 {[%clk 0:00:02.1]} 47. Kxg1 {[%clk 0:00:18.5]} 1-0

[Event "*** Titled Tuesday Blitz"]
[Site "Chess.com"]
[Date "2020.04.14"]
[Round "5"]
[White "machupichu10"]
[Black "Alliswell998"]
[Result "1-0"]
[WhiteElo "2800"]
[BlackElo "2557"]
[TimeControl "180+1"]
[EndTime "10:51:46 PDT"]
[Termination "machupichu10 won by checkmate"]

1. d4 {[%clk 0:03:00.9]} 1... Nf6 {[%clk 0:02:59.8]} 2. c4 {[%clk 0:02:57.5]}
2... c5 {[%clk 0:02:59.4]} 3. d5 {[%clk 0:02:57.1]} 3... b5 {[%clk 0:02:59.8]}
4. cxb5 {[%clk 0:02:57.2]} 4... a6 {[%clk 0:03:00.3]} 5. b6 {[%clk 0:02:57.9]}
5... g6 {[%clk 0:03:00.7]} 6. Nc3 {[%clk 0:02:58.3]} 6... Bg7 {[%clk 0:03:01.2]}
7. e4 {[%clk 0:02:58.7]} 7... d6 {[%clk 0:03:01.7]} 8. Nf3 {[%clk 0:02:58.8]}
8... Nbd7 {[%clk 0:03:02.2]} 9. Bd3 {[%clk 0:02:59.1]} 9... O-O {[%clk
0:03:02.5]} 10. h3 {[%clk 0:02:59.4]} 10... Rb8 {[%clk 0:03:02.8]} 11. O-O
{[%clk 0:02:59.6]} 11... Qxb6 {[%clk 0:03:00.8]} 12. Re1 {[%clk 0:02:59.4]}
12... Qa7 {[%clk 0:03:00.7]} 13. Rb1 {[%clk 0:02:59.4]} 13... Ne8 {[%clk
0:02:57.3]} 14. Bg5 {[%clk 0:02:58.7]} 14... f6 {[%clk 0:02:53.6]} 15. Be3
{[%clk 0:02:57.6]} 15... Nc7 {[%clk 0:02:51]} 16. a4 {[%clk 0:02:56]} 16... Rb4
{[%clk 0:02:49.1]} 17. Nd2 {[%clk 0:02:55.4]} 17... a5 {[%clk 0:02:26]} 18. Nc4
{[%clk 0:02:35.6]} 18... Ne5 {[%clk 0:02:14.7]} 19. Nxe5 {[%clk 0:02:19.6]}
19... fxe5 {[%clk 0:02:15.6]} 20. Qe2 {[%clk 0:02:13.8]} 20... Ba6 {[%clk
0:02:07.9]} 21. Bxa6 {[%clk 0:01:47.3]} 21... Qxa6 {[%clk 0:02:08.8]} 22. Qxa6
{[%clk 0:01:47.3]} 22... Nxa6 {[%clk 0:02:09.2]} 23. b3 {[%clk 0:01:47.5]} 23...
Rfb8 {[%clk 0:02:03.8]} 24. Nb5 {[%clk 0:01:46.3]} 24... Rxe4 {[%clk 0:02:00.7]}
25. Bd2 {[%clk 0:01:42.8]} 25... Rxe1+ {[%clk 0:01:57.5]} 26. Rxe1 {[%clk
0:01:39.9]} 26... Nb4 {[%clk 0:01:57.9]} 27. Bxb4 {[%clk 0:01:39.9]} 27... cxb4
{[%clk 0:01:51.1]} 28. Rc1 {[%clk 0:01:39.5]} 28... Kf7 {[%clk 0:01:34.6]} 29.
Rc7 {[%clk 0:01:35.4]} 29... Kf6 {[%clk 0:01:33.1]} 30. Kf1 {[%clk 0:01:13.4]}
30... e4 {[%clk 0:01:29.8]} 31. Ke2 {[%clk 0:01:12.3]} 31... Bh6 {[%clk
0:01:28]} 32. Nd4 {[%clk 0:01:11.9]} 32... Ra8 {[%clk 0:01:20.2]} 33. Nc6 {[%clk
0:00:56.7]} 33... Bf8 {[%clk 0:01:15]} 34. Ke3 {[%clk 0:00:55.2]} 34... e6
{[%clk 0:01:04.3]} 35. Kxe4 {[%clk 0:00:36.7]} 35... Re8 {[%clk 0:00:59.5]} 36.
f4 {[%clk 0:00:34.6]} 36... Bh6 {[%clk 0:00:53.6]} 37. g3 {[%clk 0:00:32.1]}
37... g5 {[%clk 0:00:52.5]} 38. Rxh7 {[%clk 0:00:31.3]} 38... Kg6 {[%clk
0:00:48.4]} 39. Re7 {[%clk 0:00:31.2]} 39... exd5+ {[%clk 0:00:28.8]} 40. Kxd5
{[%clk 0:00:31.2]} 40... Rf8 {[%clk 0:00:27.1]} 41. Re6+ {[%clk 0:00:26.6]}
41... Kh7 {[%clk 0:00:26.3]} 42. fxg5 {[%clk 0:00:25.6]} 42... Bxg5 {[%clk
0:00:27.2]} 43. Rxd6 {[%clk 0:00:25.3]} 43... Rf3 {[%clk 0:00:27.2]} 44. Kc4
{[%clk 0:00:23]} 44... Rxg3 {[%clk 0:00:26.9]} 45. Nxa5 {[%clk 0:00:23.1]} 45...
Rxh3 {[%clk 0:00:25.2]} 46. Rd7+ {[%clk 0:00:23.5]} 46... Kg6 {[%clk 0:00:25.1]}
47. Kxb4 {[%clk 0:00:24.1]} 47... Bh4 {[%clk 0:00:22.8]} 48. Nc6 {[%clk
0:00:23.4]} 48... Be1+ {[%clk 0:00:22.5]} 49. Ka3 {[%clk 0:00:22.7]} 49... Kf6
{[%clk 0:00:21.5]} 50. Rd6+ {[%clk 0:00:22.5]} 50... Kf5 {[%clk 0:00:21.4]} 51.
a5 {[%clk 0:00:22.7]} 51... Bc3 {[%clk 0:00:16.6]} 52. a6 {[%clk 0:00:21.4]}
52... Rh1 {[%clk 0:00:16.8]} 53. Ka4 {[%clk 0:00:20.8]} 53... Kg5 {[%clk
0:00:10.8]} 54. Kb5 {[%clk 0:00:20.7]} 54... Ra1 {[%clk 0:00:10.5]} 55. a7
{[%clk 0:00:20.4]} 55... Be1 {[%clk 0:00:10.1]} 56. Rd8 {[%clk 0:00:20.6]} 56...
Rb1 {[%clk 0:00:08.1]} 57. b4 {[%clk 0:00:19.9]} 57... Bxb4 {[%clk 0:00:04.2]}
58. Nxb4 {[%clk 0:00:19.7]} 58... Ra1 {[%clk 0:00:03.2]} 59. a8=Q {[%clk
0:00:19.4]} 59... Rf1 {[%clk 0:00:03.7]} 60. Rg8+ {[%clk 0:00:19.1]} 60... Kh6
{[%clk 0:00:03.9]} 61. Qc6+ {[%clk 0:00:18.1]} 61... Kh5 {[%clk 0:00:04.1]} 62.
Qg6+ {[%clk 0:00:18.1]} 62... Kh4 {[%clk 0:00:04.5]} 63. Qg4# {[%clk 0:00:18.7]}
1-0

[Event "*** Titled Tuesday Blitz"]
[Site "Chess.com"]
[Date "2020.04.14"]
[Round "5"]
[White "farzadbfd"]
[Black "kingofthenil"]
[Result "1-0"]
[WhiteElo "2739"]
[BlackElo "2541"]
[TimeControl "180+1"]
[EndTime "10:51:49 PDT"]
[Termination "farzadbfd won on time"]

1. e4 {[%clk 0:03:00.9]} 1... Nc6 {[%clk 0:02:58.5]} 2. d4 {[%clk 0:02:59.7]}
2... d5 {[%clk 0:02:56]} 3. e5 {[%clk 0:02:59.3]} 3... Bf5 {[%clk 0:02:54.7]} 4.
Nf3 {[%clk 0:02:58.8]} 4... e6 {[%clk 0:02:50.1]} 5. Bd3 {[%clk 0:02:58.7]} 5...
Nge7 {[%clk 0:02:47.9]} 6. O-O {[%clk 0:02:58.2]} 6... f6 {[%clk 0:02:44.2]} 7.
exf6 {[%clk 0:02:57]} 7... gxf6 {[%clk 0:02:45.1]} 8. Re1 {[%clk 0:02:55.2]}
8... Qd7 {[%clk 0:02:42.4]} 9. Qe2 {[%clk 0:02:37.6]} 9... Bxd3 {[%clk
0:02:35.8]} 10. Qxd3 {[%clk 0:02:37.9]} 10... O-O-O {[%clk 0:02:34.2]} 11. a4
{[%clk 0:02:27.5]} 11... Ng6 {[%clk 0:02:18.1]} 12. c3 {[%clk 0:02:21.4]} 12...
e5 {[%clk 0:02:17.6]} 13. dxe5 {[%clk 0:02:15.2]} 13... fxe5 {[%clk 0:02:18.5]}
14. Ng5 {[%clk 0:02:15.9]} 14... e4 {[%clk 0:01:57.9]} 15. Qh3 {[%clk
0:02:15.2]} 15... Qxh3 {[%clk 0:01:55.5]} 16. Nxh3 {[%clk 0:02:16.1]} 16... Nce5
{[%clk 0:01:48.5]} 17. Bg5 {[%clk 0:02:07.1]} 17... Re8 {[%clk 0:01:40.6]} 18.
Na3 {[%clk 0:01:49.2]} 18... Nd3 {[%clk 0:01:38.9]} 19. Re2 {[%clk 0:01:49.2]}
19... Bxa3 {[%clk 0:01:19.4]} 20. Rxa3 {[%clk 0:01:50.1]} 20... Rhg8 {[%clk
0:01:20]} 21. Ra1 {[%clk 0:01:45]} 21... Nge5 {[%clk 0:01:16.3]} 22. Bf4 {[%clk
0:01:22.2]} 22... Ref8 {[%clk 0:00:47.4]} 23. Bg3 {[%clk 0:01:12.1]} 23... h5
{[%clk 0:00:41.5]} 24. Rd1 {[%clk 0:01:12.1]} 24... c6 {[%clk 0:00:38.5]} 25. b3
{[%clk 0:00:49.5]} 25... h4 {[%clk 0:00:35.4]} 26. Bxe5 {[%clk 0:00:49.6]} 26...
Nxe5 {[%clk 0:00:36.3]} 27. c4 {[%clk 0:00:42.5]} 27... Nd3 {[%clk 0:00:21.7]}
28. cxd5 {[%clk 0:00:33.6]} 28... cxd5 {[%clk 0:00:22.6]} 29. f3 {[%clk
0:00:33.7]} 29... Kb8 {[%clk 0:00:04.3]} 30. fxe4 {[%clk 0:00:31.3]} 30... dxe4
{[%clk 0:00:05.2]} 31. Rxe4 {[%clk 0:00:28.6]} 31... Nc5 {[%clk 0:00:03.3]} 32.
Re3 {[%clk 0:00:24.9]} 32... Rg4 {[%clk 0:00:02.3]} 33. Rc1 {[%clk 0:00:23.4]}
33... b6 {[%clk 0:00:01.7]} 34. Rf1 {[%clk 0:00:20.1]} 34... Rfg8 {[%clk
0:00:01.4]} 35. Rf2 {[%clk 0:00:18.9]} 35... Rb4 {[%clk 0:00:01.2]} 36. Rff3
{[%clk 0:00:18.1]} 36... a5 {[%clk 0:00:01]} 37. Nf4 {[%clk 0:00:17.1]} 37...
Rd4 {[%clk 0:00:01]} 38. h3 {[%clk 0:00:16.5]} 38... Rd1+ {[%clk 0:00:01.6]} 39.
Kh2 {[%clk 0:00:17]} 39... Rd2 {[%clk 0:00:02.5]} 40. Re2 {[%clk 0:00:16.7]}
40... Rxe2 {[%clk 0:00:02.5]} 41. Nxe2 {[%clk 0:00:17.6]} 41... Re8 {[%clk
0:00:03.1]} 42. Nd4 {[%clk 0:00:17]} 42... Re4 {[%clk 0:00:03]} 43. Nf5 {[%clk
0:00:17.3]} 43... Rb4 {[%clk 0:00:02.5]} 44. g4 {[%clk 0:00:15]} 44... hxg3+
{[%clk 0:00:02]} 45. Kxg3 {[%clk 0:00:15.9]} 45... Nxb3 {[%clk 0:00:02.7]} 46.
h4 {[%clk 0:00:16]} 46... Nc5 {[%clk 0:00:03.3]} 47. h5 {[%clk 0:00:16.3]} 47...
Ne4+ {[%clk 0:00:01.8]} 48. Kh3 {[%clk 0:00:16.1]} 48... Nf6 {[%clk 0:00:02.7]}
49. h6 {[%clk 0:00:15.8]} 49... Rxa4 {[%clk 0:00:03.3]} 50. Ne7 {[%clk
0:00:15.7]} 50... Nh7 {[%clk 0:00:03.4]} 51. Rg3 {[%clk 0:00:15]} 51... Re4
{[%clk 0:00:01.8]} 52. Rg8+ {[%clk 0:00:15.1]} 52... Kb7 {[%clk 0:00:01.1]} 53.
Rg7 {[%clk 0:00:16]} 1-0